bitfinex/quotes_ETHUSD_20250403
["timestamp","ask_amount","ask_price","bid_price","bid_amount"]
[1743655059762,0.16790189,1830.5,1830.3,4.37084]
[1743655059960,0.16790189,1830.5,1830.4,4.37062]
[1743655060162,3.8275,1830.8,1830.5,4.37034]
[1743655060373,0.8275,1830.8,1830.6,4.37001]
[1743655060669,5.10453443,1830.9,1830.6,5.24950786]
[1743655061482,5.10453443,1830.9,1830.6,9.61947786]
[1743655061631,0.8275,1830.8,1830.5,4.37038]
[1743655061826,0.99437174,1830.8,1830.5,4.37038]
[1743655062443,0.99437174,1830.8,1830.5,8.74055]
[1743655062642,0.99437174,1830.8,1830.5,4.37017]
[1743655063345,0.99437174,1830.8,1830.5,8.74045]
[1743655063666,0.99437174,1830.8,1830.6,5.244105]
[1743655064742,0.16687174,1830.8,1830.7,4.36991]
[1743655064946,5.10453443,1830.9,1830.7,4.36991]
[1743655065149,0.16711424,1830.8,1830.6,5.244105]
[1743655065367,5.10453443,1830.9,1830.6,4.37006]
[1743655065571,0.1656755,1830.8,1830.6,4.37006]
[1743655065872,5.10453443,1830.9,1830.6,4.37006]
[1743655066030,0.1654684,1830.7,1830.4,5.12281]
[1743655066236,5.10453443,1830.9,1830.5,4.37035]
[1743655066436,0.16509958,1830.6,1830.5,5.319666]
[1743655066784,0.1653421,1830.6,1830.5,5.319666]
[1743655066934,5.10453443,1830.9,1830.5,5.319666]
[1743655067134,0.16607966,1830.8,1830.5,5.319666]
[1743655067336,5.10453443,1830.9,1830.5,5.319666]
[1743655067578,0.16607966,1830.8,1830.5,5.319666]
[1743655067950,5.10453443,1830.9,1830.5,5.319666]
[1743655068153,0.16607966,1830.8,1830.5,5.319666]
[1743655068355,5.10453443,1830.9,1830.5,5.319666]
[1743655068552,0.16607966,1830.8,1830.5,9.7445181]
[1743655068750,5.10453443,1830.9,1830.6,0.97445181]
[1743655069069,0.16607966,1830.8,1830.6,5.34457181]
[1743655069240,0.16607966,1830.8,1830.7,4.36991]
[1743655069439,5.10453443,1830.9,1830.8,4.36967]
[1743655072888,5.10453443,1830.9,1830.7,5.18921]
[1743655073050,5.10453443,1830.9,1830.7,6.31937618]
[1743655073460,5.10453443,1830.9,1830.5,4.37017]
[1743655074098,5.10453443,1830.9,1830.6,4.37001]
[1743655074382,5.14147,1830.8,1830.4,9.50961]
[1743655074589,5.14147,1830.8,1830.4,4.37061]
[1743655076095,5.14534,1830.7,1830.3,9.5097]
[1743655076403,0.7754,1830.6,1830.2,4.37106]
[1743655076768,0.16545031,1830.5,1830.2,4.37106]
[1743655077079,5.26998474,1830.5,1830.2,4.37106]
[1743655079501,5.26998474,1830.5,1830.1,4.37122]
[1743655079698,5.26998474,1830.5,1830.1,9.51022]
[1743655079875,9.64037474,1830.5,1830.1,9.51022]
[1743655080204,9.64037474,1830.5,1830.1,14.913752]
[1743655080411,9.64037474,1830.5,1830.1,10.542532]
[1743655081204,5.26998474,1830.5,1830.4,4.37062]
[1743655081402,0.16545031,1830.5,1830.4,4.37062]
[1743655081569,5.10453443,1830.8,1830.6,4.36997]
[1743655081774,5.10453443,1830.8,1830.7,4.806907]
[1743655084003,4.36898,1831.1,1831.0,4.36919]
[1743655084004,5.10453443,1831.1,1831.0,4.36919]
[1743655084297,5.10453443,1831.1,1830.8,4.42423394]
[1743655084499,5.10453443,1831.1,1830.7,4.36971]
[1743655084711,9.47361443,1831.1,1830.7,4.36971]
[1743655085391,10.93849987,1831.1,1830.7,4.36971]
[1743655085596,10.93849987,1831.1,1830.6,10.34152]
[1743655086094,5.10453443,1831.1,1830.8,4.36954]
[1743655086295,5.10453443,1831.1,1830.9,4.36932]
[1743655088688,5.10453443,1831.1,1830.8,4.36954]
[1743655088890,9.47353443,1831.1,1830.6,14.71132]
[1743655089090,9.47353443,1831.1,1830.6,13.87899]
[1743655089291,10.93840087,1831.1,1830.6,13.87899]
[1743655089839,5.10453443,1831.1,1830.8,4.36964]
[1743655090411,5.10453443,1831.1,1830.9,4.36932]
[1743655091916,0.1510831,1831.0,1830.9,4.36932]
[1743655093350,5.10453443,1831.1,1831.0,5.17379]
[1743655093519,5.10453443,1831.5,1831.2,4.36866]
[1743655093713,5.10453443,1831.5,1831.2,8.73732]
[1743655094021,5.10453443,1831.5,1831.2,4.36866]
[1743655096559,5.10453443,1831.5,1831.3,4.36831]
[1743655097233,5.10453443,1831.5,1831.1,4.36875]
[1743655097560,5.15826,1831.4,1831.0,5.138]
[1743655097921,4.36861,1831.3,1831.0,5.138]
[1743655098117,0.79,1831.4,1831.0,5.138]
[1743655098558,0.79,1831.4,1831.0,9.50698]
[1743655098732,5.19618,1831.3,1831.0,5.138]
[1743655098921,4.36875,1831.2,1830.8,4.36947]
[1743655099130,0.8275,1831.0,1830.7,4.3698]
[1743655099347,0.8275,1831.0,1830.8,4.36959]
[1743655100137,0.8275,1831.0,1830.7,4.3698]
[1743655100454,0.8275,1831.0,1830.6,10.26222]
[1743655100766,0.8275,1831.0,1830.5,4.37022]
[1743655100767,9.47408443,1830.9,1830.5,4.37022]
[1743655103788,0.8044,1830.8,1830.4,4.37058]
[1743655106186,0.8044,1830.8,1830.3,10.32908]
[1743655106187,0.8044,1830.8,1830.5,4.37028]
[1743655106978,0.15454619,1830.7,1830.5,4.37028]
[1743655107362,0.15454619,1830.7,1830.5,4.37027]
[1743655107565,0.15454619,1830.7,1830.4,4.37058]
[1743655108487,0.15454619,1830.7,1830.3,14.6999]
[1743655108657,0.15454619,1830.7,1830.3,16.16989]
[1743655109589,0.15454619,1830.7,1830.4,4.37057]
[1743655110353,0.15454619,1830.7,1830.3,11.79912]
[1743655110354,0.7913,1830.6,1830.3,4.37073]
[1743655110681,0.15380863,1830.5,1830.3,4.37073]
[1743655110897,0.15380863,1830.5,1830.2,9.50909]
[1743655111590,0.15380863,1830.5,1830.2,9.50898]
[1743655111889,0.15380863,1830.5,1830.3,4.37076]
[1743655112191,0.15380863,1830.5,1830.4,4.37062]
[1743655112390,0.15380863,1830.5,1830.4,5.13612]
[1743655112591,5.10453443,1830.9,1830.5,4.37026]
[1743655112896,0.15257958,1830.8,1830.5,4.37026]
[1743655113062,5.10453443,1830.9,1830.5,5.320898]
[1743655113390,0.15221086,1830.7,1830.4,4.37062]
[1743655113578,0.788,1830.7,1830.3,4.37083]
[1743655113783,0.1518421,1830.6,1830.3,4.37083]
[1743655114163,0.1518421,1830.6,1830.2,9.5091]
[1743655114504,4.5219921,1830.6,1830.2,9.5091]
[1743655115041,0.8111,1830.5,1830.1,4.37134]
[1743655115335,0.96140527,1830.5,1830.1,8.74268]
[1743655115641,0.96140527,1830.5,1830.2,4.37109]
[1743655116409,0.96140527,1830.5,1830.1,4.37134]
[1743655116602,5.33180527,1830.5,1830.1,4.37134]
[1743655117032,6.65116186,1830.5,1830.1,4.37134]
[1743655118140,2.28076186,1830.5,1830.1,4.37134]
[1743655118455,0.8028,1830.4,1830.1,4.37134]
[1743655119136,0.14820972,1830.3,1830.1,4.37134]
[1743655120072,0.14820972,1830.3,1829.9,4.37178]
[1743655121035,4.51909972,1830.3,1829.9,4.37178]
[1743655121221,0.7795,1830.2,1829.9,4.37178]
[1743655121422,0.14737709,1830.1,1829.8,4.3719]
[1743655121858,5.15063,1830.2,1829.8,4.3719]
[1743655122163,0.14737709,1830.1,1829.8,4.3719]
[1743655122467,0.7795,1830.2,1829.8,4.3719]
[1743655122669,0.14700809,1830.0,1829.8,4.3719]
[1743655122851,5.88403443,1830.2,1829.8,4.3719]
[1743655123367,0.14567904,1830.1,1829.8,4.3719]
[1743655123722,5.88403443,1830.2,1829.8,4.3719]
[1743655123922,0.14530994,1830.0,1829.8,4.3719]
[1743655124123,7.44357577,1830.2,1829.8,4.3719]
[1743655124323,0.14494081,1829.9,1829.8,4.3719]
[1743655124746,11.81470577,1830.2,1829.8,4.3719]
[1743655124955,0.14494081,1829.9,1829.8,4.3719]
[1743655125167,11.81470577,1830.2,1829.8,4.3719]
[1743655125335,0.14494081,1829.9,1829.8,4.3719]
[1743655125659,5.88403443,1830.2,1829.9,4.37178]
[1743655126653,5.88403443,1830.2,1829.8,4.3719]
[1743655126858,10.25520443,1830.2,1829.8,4.3719]
[1743655128665,5.88403443,1830.2,1829.8,8.74386]
[1743655130660,5.88403443,1830.2,1829.9,4.37178]
[1743655130875,5.88403443,1830.2,1829.9,4.808958]
[1743655131164,5.88403443,1830.2,1830.0,4.37155]
[1743655132170,5.88403443,1830.2,1829.9,4.808878]
[1743655132766,5.82313443,1830.2,1829.9,4.808878]
[1743655133934,9.47476443,1830.6,1830.1,4.37123]
[1743655134130,3.0,1830.5,1830.1,4.37123]
[1743655134366,8.10453443,1830.5,1830.1,4.37123]
[1743655134573,12.47495443,1830.5,1830.1,4.37123]
[1743655134872,4.37077,1830.4,1829.9,4.808828]
[1743655135170,5.65921894,1830.4,1829.9,4.808828]
[1743655135381,4.37088,1830.3,1829.9,4.808828]
[1743655135539,4.37077,1830.4,1829.9,4.808828]
[1743655135738,0.7771,1830.3,1829.9,4.808828]
[1743655136960,0.1456212,1830.2,1829.8,4.37205]
[1743655137358,0.7771,1830.1,1829.8,4.37205]
[1743655137761,0.1442361,1830.0,1829.8,4.37205]
[1743655138485,0.1442361,1830.0,1829.7,9.5183]
[1743655138775,0.1442361,1830.0,1829.7,4.3723]
[1743655139667,0.1442361,1830.0,1829.6,4.37249]
[1743655139968,5.18264,1829.9,1829.5,13.88929]
[1743655140142,0.8108,1829.9,1829.5,15.51427382]
[1743655140338,0.14467054,1829.8,1829.5,15.51427382]
[1743655140533,0.8108,1829.9,1829.5,15.51427382]
[1743655140734,0.14430139,1829.7,1829.5,10.37027382]
[1743655140986,0.8108,1829.9,1829.5,1.62498382]
[1743655141154,0.9547322,1829.6,1829.4,2.3605482]
[1743655141355,0.8108,1829.6,1829.4,2.3605482]
[1743655141549,0.14210341,1829.5,1829.4,2.3605482]
[1743655141966,0.14210341,1829.5,1829.3,8.74618]
[1743655143375,0.14210341,1829.5,1829.3,4.37304]
[1743655143550,0.14210341,1829.5,1829.2,9.52046]
[1743655144285,0.14210341,1829.5,1829.2,4.37346]
[1743655144777,5.24663784,1829.5,1829.1,14.7959]
[1743655144952,5.24663784,1829.5,1829.1,13.9924]
[1743655145755,5.24663784,1829.5,1829.2,4.37347]
[1743655146852,5.24663784,1829.5,1829.1,6.72038]
[1743655147053,9.61944784,1829.5,1829.1,0.1]
[1743655147250,13.99244784,1829.5,1829.1,0.1]
[1743655147554,5.13685,1829.4,1829.1,0.1]
[1743655147789,0.13786343,1829.3,1829.1,0.1]
[1743655148146,5.13685,1829.4,1829.1,0.1]
[1743655148385,0.13587527,1829.2,1829.1,0.1]
[1743655148680,0.13543269,1829.2,1829.1,0.1]
[1743655148887,6.59826944,1829.4,1829.1,0.1]
[1743655149060,0.13543269,1829.2,1829.1,0.1]
[1743655149263,6.59826944,1829.4,1829.1,0.1]
[1743655149462,0.13580219,1829.3,1829.1,0.1]
[1743655149788,6.59826944,1829.4,1829.1,0.1]
[1743655150082,10.97147944,1829.4,1829.1,0.1]
[1743655150281,5.16897913,1829.3,1829.1,0.1]
[1743655150661,9.54244913,1829.3,1829.1,0.1]
[1743655150861,4.37349,1829.2,1829.1,0.1]
[1743655151089,4.50882785,1829.2,1829.1,0.1]
[1743655151687,10.49683128,1829.2,1829.1,0.1]
[1743655151855,11.28863128,1829.2,1829.1,0.1]
[1743655152054,10.49683128,1829.2,1829.1,0.1]
[1743655152252,5.23987228,1829.2,1829.1,0.1]
[1743655153463,5.23987228,1829.2,1829.1,4.47373]
[1743655153780,5.23987228,1829.2,1829.1,0.1]
[1743655156673,5.23987228,1829.2,1829.1,4.47373]
[1743655156875,5.23987228,1829.2,1829.1,0.1]
[1743655160471,0.13533785,1829.2,1829.1,5.358522]
[1743655160673,5.10453443,1829.5,1829.1,10.537652]
[1743655160974,0.13364229,1829.4,1829.2,4.37346]
[1743655161171,0.13364229,1829.4,1829.3,4.37325]
[1743655161504,0.13364229,1829.4,1829.3,5.17865]
[1743655161672,0.13364229,1829.4,1829.3,6.13932748]
[1743655162802,0.13364229,1829.4,1829.2,4.37335]
[1743655163090,0.13364229,1829.4,1829.1,5.22509]
[1743655164108,0.13364229,1829.4,1829.1,4.47369]
[1743655164903,0.13364229,1829.4,1829.2,4.37347]
[1743655165104,0.13364229,1829.4,1829.3,5.12465]
[1743655165311,0.13364229,1829.4,1829.3,6.07992873]
[1743655168305,0.13364229,1829.4,1829.3,5.32852873]
[1743655168703,0.13364229,1829.4,1829.2,5.15879]
[1743655169609,0.13364229,1829.4,1829.2,4.37339]
[1743655171313,0.13364229,1829.4,1829.1,4.47373]
[1743655171314,4.50679229,1829.4,1829.1,0.1]
[1743655171884,4.37329,1829.3,1829.1,0.1]
[1743655172084,0.13457916,1829.2,1829.1,0.1]
[1743655172716,0.13457916,1829.2,1829.1,5.25913]
[1743655172892,5.10453443,1829.9,1829.6,4.3724]
[1743655173088,0.11310178,1829.8,1829.7,4.37228]
[1743655173288,5.10453443,1829.9,1829.7,4.37228]
[1743655173494,0.11310178,1829.8,1829.7,4.37228]
[1743655173706,5.10453443,1829.9,1829.7,4.37228]
[1743655174023,0.11310178,1829.8,1829.7,4.37228]
[1743655174835,5.10453443,1829.9,1829.7,4.37228]
[1743655175018,0.11310178,1829.8,1829.6,4.3724]
[1743655175389,5.10453443,1829.9,1829.6,4.3724]
[1743655175604,0.11321794,1829.7,1829.6,4.3724]
[1743655175803,5.10453443,1829.9,1829.6,4.3724]
[1743655176324,0.11358721,1829.8,1829.6,8.74484]
[1743655176490,5.10453443,1829.9,1829.6,8.74484]
[1743655176819,0.11358721,1829.8,1829.6,8.74484]
[1743655177119,5.10453443,1829.9,1829.6,8.74484]
[1743655177329,0.11358721,1829.8,1829.6,8.74484]
[1743655177486,5.10453443,1829.9,1829.6,8.74484]
[1743655177686,0.11358721,1829.8,1829.7,4.37211]
[1743655177917,5.10453443,1829.9,1829.7,9.618677]
[1743655178121,0.11358721,1829.8,1829.7,9.618677]
[1743655178417,5.10453443,1829.9,1829.7,9.618677]
[1743655178603,0.11358721,1829.8,1829.7,4.37211]
[1743655179002,5.10453443,1829.9,1829.7,4.37211]
[1743655179202,0.11358721,1829.8,1829.7,4.37211]
[1743655179603,5.10453443,1829.9,1829.7,4.37211]
[1743655179803,0.11358721,1829.8,1829.7,4.37211]
[1743655180119,5.10453443,1829.9,1829.8,4.37206]
[1743655180299,5.21849087,1829.9,1829.8,5.18056]
[1743655183923,0.11395644,1829.9,1829.8,5.18056]
[1743655184134,9.47539443,1830.3,1829.8,9.55262]
[1743655184299,4.48048056,1830.2,1829.8,5.18056]
[1743655184498,0.8046,1830.1,1829.8,5.18056]
[1743655184699,0.10862234,1830.0,1829.9,4.37179]
[1743655185730,0.10862234,1830.0,1829.8,8.74412]
[1743655185940,0.10862234,1830.0,1829.8,4.37206]
[1743655186146,0.10862234,1830.0,1829.7,4.37225]
[1743655188552,0.10862234,1830.0,1829.7,8.74437]
[1743655189048,0.10862234,1830.0,1829.8,4.372]
[1743655189753,0.10862234,1830.0,1829.9,4.37182]
[1743655189955,0.7749,1830.2,1829.9,4.37182]
[1743655190107,0.10923417,1830.1,1829.8,4.37191]
[1743655190307,5.14614,1830.2,1829.7,4.37229]
[1743655190508,0.62344366,1830.1,1829.7,8.7444]
[1743655190830,0.10882966,1830.1,1829.8,4.37193]
[1743655191237,5.14614,1830.2,1829.8,4.37193]
[1743655191433,0.10846052,1830.0,1829.8,4.37193]
[1743655191763,0.7749,1830.2,1829.9,4.37178]
[1743655192122,0.7749,1830.2,1830.1,4.37134]
[1743655192310,5.10453443,1830.3,1830.0,4.37155]
[1743655193314,6.13317087,1830.3,1830.0,4.37155]
[1743655195231,5.10453443,1830.3,1830.0,4.37155]
[1743655196758,0.10993842,1830.2,1830.0,4.37155]
[1743655197376,5.10453443,1830.3,1830.0,4.37155]
[1743655198064,5.10453443,1830.3,1829.9,4.37177]
[1743655200116,5.10453443,1830.3,1830.0,4.37157]
[1743655200463,5.20664747,1830.3,1830.0,5.245894]
[1743655201592,9.57752747,1830.3,1830.0,0.874324]
[1743655201754,9.57752747,1830.3,1829.9,4.37167]
[1743655202070,9.57752747,1830.3,1829.8,5.18214]
[1743655202480,9.57752747,1830.3,1829.9,4.37179]
[1743655203279,5.20664747,1830.3,1829.9,4.37179]
[1743655204353,5.20664747,1830.3,1830.0,4.37156]
[1743655204636,5.20664747,1830.3,1829.9,4.37179]
[1743655205167,9.57751747,1830.3,1829.9,4.37179]
[1743655206071,5.14299,1830.2,1829.7,4.37208]
[1743655206366,5.24522858,1830.1,1829.7,4.37208]
[1743655207271,5.14305,1830.1,1829.7,4.37208]
[1743655207572,10.24758443,1830.1,1829.7,4.37208]
[1743655207790,5.17696,1829.9,1829.5,4.37259]
[1743655207937,10.28149443,1829.9,1829.5,4.37259]
[1743655208754,5.90963443,1829.9,1829.5,8.74526]
[1743655208953,5.90963443,1829.9,1829.5,10.21749165]
[1743655209190,10.28147443,1829.9,1829.5,5.84482165]
[1743655211798,5.90963443,1829.9,1829.5,10.21749165]
[1743655211997,5.90963443,1829.9,1829.5,4.37259]
[1743655212561,10.28151443,1829.9,1829.5,4.37259]
[1743655213094,5.90963443,1829.9,1829.4,5.97705653]
[1743655213283,5.90963443,1829.9,1829.5,4.3726]
[1743655213593,5.90963443,1829.9,1829.6,4.37249]
[1743655214191,10.28150443,1829.9,1829.5,4.3726]
[1743655214907,5.90963443,1829.9,1829.5,4.3726]
[1743655215392,5.90963443,1829.9,1829.5,8.74522]
[1743655218569,5.90963443,1829.9,1829.5,4.3726]
[1743655220297,5.90963443,1829.9,1829.5,5.839401]
[1743655220479,5.90963443,1829.9,1829.6,4.37252]
[1743655221891,5.90963443,1829.9,1829.5,4.3726]
[1743655222099,10.28159443,1829.9,1829.5,4.3726]
[1743655224067,5.90963443,1829.9,1829.6,4.37251]
[1743655224696,0.8047,1829.8,1829.3,4.37302]
[1743655224875,5.17703,1829.7,1829.3,4.37302]
[1743655227869,10.28156443,1829.7,1829.3,4.37302]
[1743655228575,5.90923443,1829.7,1829.2,0.05466251]
[1743655228777,5.10453443,1829.7,1829.6,4.37254]
[1743655228998,0.7943,1830.1,1829.8,4.37189]
[1743655231608,0.22438646,1830.0,1829.7,4.37214]
[1743655232201,0.22438646,1830.0,1829.8,4.372]
[1743655232777,0.22438646,1830.0,1829.9,4.37182]
[1743655233485,5.10453443,1830.2,1829.9,4.37182]
[1743655233681,0.22646039,1830.0,1829.9,4.37182]
[1743655234015,0.22646039,1830.0,1829.9,5.246202]
[1743655234174,5.10453443,1830.2,1829.9,5.246202]
[1743655234375,0.22682185,1830.1,1829.9,5.246202]
[1743655234575,5.10453443,1830.2,1829.9,9.617902]
[1743655234776,0.22682185,1830.1,1829.9,8.74352]
[1743655234998,5.10453443,1830.2,1829.9,8.74352]
[1743655235198,0.22682185,1830.1,1829.9,8.74352]
[1743655235405,5.10453443,1830.2,1829.9,8.74352]
[1743655235609,0.22682185,1830.1,1829.9,8.74352]
[1743655235904,5.10453443,1830.2,1829.9,8.74352]
[1743655236410,0.22682185,1830.1,1829.9,8.74352]
[1743655236703,5.10453443,1830.2,1829.9,8.74352]
[1743655236905,0.22646039,1830.0,1829.9,8.74352]
[1743655237079,5.10453443,1830.2,1829.9,9.617872]
[1743655237280,0.22646039,1830.0,1829.9,8.74352]
[1743655237488,5.10453443,1830.2,1829.9,8.74352]
[1743655237702,0.22646039,1830.0,1829.9,8.74352]
[1743655238011,0.22646039,1830.0,1829.9,4.3717]
[1743655238209,5.10453443,1830.2,1829.9,4.3717]
[1743655238410,0.22682185,1830.1,1829.9,4.3717]
[1743655238599,5.10453443,1830.2,1829.9,4.3717]
[1743655238777,0.22682185,1830.1,1829.9,4.3717]
[1743655238978,5.10453443,1830.2,1829.9,4.3717]
[1743655239189,0.22682185,1830.1,1829.9,4.3717]
[1743655239377,5.10453443,1830.2,1829.9,4.3717]
[1743655239573,0.22682185,1830.1,1829.9,4.3717]
[1743655239779,5.10453443,1830.2,1829.9,9.18057]
[1743655240087,0.22682185,1830.1,1829.9,9.563]
[1743655240479,5.10453443,1830.2,1829.9,9.563]
[1743655240680,0.22646039,1830.0,1829.9,9.563]
[1743655240880,5.10453443,1830.2,1829.9,9.563]
[1743655241081,0.22646039,1830.0,1829.9,9.563]
[1743655241282,5.10453443,1830.2,1829.9,10.5193]
[1743655241482,0.22646039,1830.0,1829.9,9.563]
[1743655241704,5.10453443,1830.2,1829.9,9.563]
[1743655241901,0.22646039,1830.0,1829.9,9.563]
[1743655242110,5.10453443,1830.2,1829.9,9.563]
[1743655242617,0.22682185,1830.1,1829.9,9.563]
[1743655243099,5.10453443,1830.2,1829.9,9.563]
[1743655243302,0.22646039,1830.0,1829.9,9.563]
[1743655243613,0.22690697,1830.0,1829.9,10.5193]
[1743655243916,5.10453443,1830.2,1829.9,10.5193]
[1743655244099,5.10453443,1830.2,1829.9,9.563]
[1743655244100,0.22690697,1830.0,1829.9,9.563]
[1743655244284,5.10453443,1830.2,1829.9,9.563]
[1743655244483,0.22690697,1830.0,1829.9,9.563]
[1743655244683,5.10453443,1830.2,1829.9,9.563]
[1743655244884,0.22690697,1830.0,1829.9,9.563]
[1743655245080,5.10453443,1830.2,1829.9,10.5193]
[1743655245305,0.22690697,1830.0,1829.9,9.563]
[1743655245504,5.10453443,1830.2,1829.9,9.563]
[1743655245714,0.22690697,1830.0,1829.9,9.563]
[1743655245913,5.10453443,1830.2,1829.9,9.563]
[1743655246226,5.10453443,1830.2,1830.0,4.37144]
[1743655246433,0.22750609,1830.1,1830.0,4.37144]
[1743655246815,5.10453443,1830.2,1830.0,4.37144]
[1743655246997,0.22750609,1830.1,1830.0,4.37144]
[1743655247202,5.10453443,1830.2,1830.0,4.37144]
[1743655247501,0.22750609,1830.1,1830.0,4.37144]
[1743655247733,5.10453443,1830.2,1830.0,4.37144]
[1743655248030,0.22808025,1830.1,1830.0,4.37144]
[1743655248334,5.10453443,1830.2,1830.0,4.37144]
[1743655248736,5.10453443,1830.2,1829.9,5.1913]
[1743655248737,0.22792182,1830.1,1829.9,5.1913]
[1743655248907,5.10453443,1830.2,1829.9,5.1913]
[1743655249102,5.10453443,1830.2,1829.9,4.3717]
[1743655249321,0.22785803,1830.1,1829.9,4.3717]
[1743655249721,5.10453443,1830.2,1829.9,4.3717]
[1743655250122,0.22785803,1830.1,1829.9,4.3717]
[1743655250321,5.10453443,1830.2,1829.9,4.3717]
[1743655250528,0.22785803,1830.1,1829.9,4.3717]
[1743655250836,0.22785803,1830.1,1829.6,4.37254]
[1743655250837,0.7664,1830.0,1829.6,4.37254]
[1743655251145,0.99389657,1830.0,1829.7,4.3722]
[1743655251640,0.22749657,1830.0,1829.8,4.37192]
[1743655252210,0.22749657,1830.0,1829.9,4.37182]
[1743655252410,5.10453443,1830.2,1829.9,4.37182]
[1743655252639,0.22785803,1830.1,1829.9,4.37182]
[1743655252941,5.10453443,1830.2,1829.9,4.37182]
[1743655253104,0.22785803,1830.1,1829.9,4.37182]
[1743655253309,5.10453443,1830.2,1829.9,4.37182]
[1743655253509,0.22785803,1830.1,1829.9,4.37182]
[1743655253734,0.7532,1830.1,1829.8,4.37192]
[1743655253938,0.22749657,1830.0,1829.9,4.3718]
[1743655254811,5.10453443,1830.2,1829.9,8.74342]
[1743655255010,0.22785803,1830.1,1829.9,8.74342]
[1743655255244,5.10453443,1830.2,1829.9,8.74342]
[1743655255446,0.22749657,1830.0,1829.9,8.74342]
[1743655255643,5.10453443,1830.2,1829.9,9.7128181]
[1743655255813,0.22749657,1830.0,1829.9,9.7128181]
[1743655256012,5.10453443,1830.2,1829.9,9.7128181]
[1743655256312,0.22785803,1830.1,1829.9,9.7128181]
[1743655256512,5.10453443,1830.2,1829.9,9.7128181]
[1743655256713,0.22785803,1830.1,1829.9,9.7128181]
[1743655257014,5.10453443,1830.2,1829.9,9.7128181]
[1743655257215,0.22785803,1830.1,1829.9,9.7128181]
[1743655257414,5.10453443,1830.2,1829.9,9.7128181]
[1743655257641,0.22785803,1830.1,1829.9,9.7128181]
[1743655257864,0.22785803,1830.1,1830.0,4.37158]
[1743655258165,0.22780858,1830.1,1830.0,0.97128181]
[1743655258315,5.10453443,1830.2,1829.9,4.37162]
[1743655258516,0.227967,1830.1,1829.9,4.37162]
[1743655258818,5.10453443,1830.2,1829.9,4.37162]
[1743655259142,0.227967,1830.1,1829.9,4.37162]
[1743655259345,5.10453443,1830.2,1829.9,4.37162]
[1743655259547,0.227967,1830.1,1829.9,4.37162]
[1743655259743,5.10453443,1830.2,1829.9,5.245988]
[1743655260137,0.227967,1830.1,1829.9,5.245988]
[1743655260356,5.10453443,1830.2,1829.9,5.245988]
[1743655260510,0.227967,1830.1,1829.9,5.245988]
[1743655260710,5.10453443,1830.2,1829.9,5.245988]
[1743655260951,0.227967,1830.1,1830.0,4.8961788]
[1743655261149,5.10453443,1830.5,1830.2,4.37089]
[1743655261316,0.41297862,1831.2,1830.5,5.752]
[1743655261518,5.10453443,1831.7,1831.6,4.36776]
[1743655262131,0.1,1831.9,1831.8,4.36728]
[1743655262316,0.1,1831.9,1831.4,0.7896]
[1743655262515,0.1,1831.9,1831.5,4.36795]
[1743655262759,0.1,1831.9,1831.6,4.36773]
[1743655263815,0.1,1831.9,1831.7,4.3675]
[1743655264018,0.1,1831.9,1831.8,4.36728]
[1743655264541,0.1,1831.9,1831.7,4.3675]
[1743655264743,0.1,1831.9,1831.7,8.73488]
[1743655266253,0.1,1831.9,1831.7,4.36738]
[1743655266454,0.1,1831.9,1831.7,4.89202074]
[1743655266971,0.1,1831.9,1831.7,4.36738]
[1743655268161,0.1,1831.9,1831.8,4.36728]
[1743655268763,0.09601465,1831.9,1831.7,4.36738]
[1743655268966,0.09601465,1831.9,1831.7,8.73478]
[1743655271297,0.09601465,1831.9,1831.8,4.36728]
[1743655271600,0.09601465,1831.9,1831.6,4.36772]
[1743655271907,0.2081655,1831.8,1831.5,4.36779]
[1743655272201,0.2081655,1831.8,1831.5,8.73566]
[1743655272368,0.2081655,1831.8,1831.5,8.73567]
[1743655272989,0.2081655,1831.8,1831.4,4.36822]
[1743655273198,0.2081655,1831.8,1831.2,5.15121]
[1743655273199,4.36763,1831.7,1831.2,5.15121]
[1743655273504,0.20664849,1831.6,1831.2,5.15121]
[1743655273674,0.20664849,1831.6,1831.3,4.36837]
[1743655281398,0.20664849,1831.6,1831.4,4.42264233]
[1743655281600,4.65e-06,1831.9,1831.8,5.18148]
[1743655281801,4.65e-06,1831.9,1831.8,8.23605107]
[1743655283482,4.65e-06,1831.9,1831.8,8.81759513]
[1743655283713,4.65e-06,1831.9,1831.8,8.98813715]
[1743655283889,4.65e-06,1831.9,1831.8,10.32369586]
[1743655285309,0.55,1832.1,1832.0,7.36681]
[1743655285508,0.55,1832.1,1832.0,13.49157866]
[1743655285808,0.1,1832.9,1832.8,4.3649]
[1743655286011,0.1,1832.9,1832.7,14.03516]
[1743655286177,0.1,1832.9,1832.8,0.05455541]
[1743655286578,0.1,1832.9,1832.7,9.72463578]
[1743655287286,0.1,1832.9,1832.7,14.08971578]
[1743655287485,0.1,1832.9,1832.7,14.03516]
[1743655287815,0.1,1832.9,1832.8,4.3649]
[1743655288187,0.1,1832.9,1832.7,9.67008]
[1743655288519,0.1,1832.9,1832.7,5.305]
[1743655289012,0.546443,1832.9,1832.7,9.72468193]
[1743655289188,0.1,1832.9,1832.7,9.72468193]
[1743655289386,0.19932495,1832.8,1832.7,9.72468193]
[1743655289715,0.1,1832.9,1832.7,5.35956193]
[1743655289884,0.19940396,1832.8,1832.6,0.17049281]
[1743655290383,0.1,1832.9,1832.6,4.36536]
[1743655290603,0.1,1832.9,1832.5,9.83398281]
[1743655290604,0.19932495,1832.8,1832.5,9.83398281]
[1743655290812,0.546458,1832.9,1832.5,4.5905465]
[1743655291139,4.36517,1832.7,1832.5,0.17049281]
[1743655291288,4.36517,1832.7,1832.6,0.17049562]
[1743655292025,10.27333443,1832.8,1832.6,0.17049562]
[1743655292212,1.02733344,1832.7,1832.6,0.17049562]
[1743655292530,1.02733344,1832.7,1832.2,0.34098843]
[1743655292531,4.36547,1832.6,1832.2,0.34098843]
[1743655293186,4.36547,1832.6,1832.2,4.70728843]
[1743655293384,12.75773344,1832.7,1832.2,4.70728843]
[1743655293590,12.75773344,1832.7,1832.2,4.53679281]
[1743655293826,4.3654,1832.6,1832.2,0.17049281]
[1743655294026,4.36566,1832.5,1832.2,0.17049281]